Cogmind - Beta 17 @@@ ROGUE MODE // 2026.06.28 @ 13:12:12 Player: Dull Result: Destroyed by G-34 Mercenary with Small Laser Performance ------------- Evolutions (0) 0 Regions Visited (2) 400 Robots Destroyed (17) 85 Value Destroyed (347) 347 Prototype IDs (2) 40 Alien Tech Used (0) 0 Bonus (0) 0 TOTAL SCORE: 872 Bonus ------- None Cogmind --------- Core Integrity 0/250 Matter 254/300 Energy 100/100 System Corruption 2% Temperature Cool (13) Movement Treading (240) Ox1 Location -10/Mines Parts ------- > --- POWER (1) -------- (None) > --- PROPULSION (2) --- Light Treads Light Treads > --- UTILITY (2) ------ High-capacity Storage Unit Core Shielding > --- WEAPON (2) ------- Light Assault Rifle Heavy Assault Rifle > --- INVENTORY (20) --- Light Treads Light Treads Wheel Wheel Compact Wheel Improved Heat Sink Cooling System Huge Storage Unit Sensor Array Seismic Detector Light Armor Plating Hardened Light Armor Plating Hardened Light Armor Plating Hardened Light Armor Plating Hardened Light Armor Plating Small Laser Assault Rifle Light Assault Rifle Grenade Launcher Mining Claw Peak State ------------ > --- POWER ------------ Ion Engine > --- PROPULSION ------- Light Treads Light Treads > --- UTILITY ---------- Cooling System High-capacity Storage Unit > --- WEAPON ----------- Small Laser Particle Gun > --- INVENTORY -------- Light Treads Wheel Wheel Compact Wheel Improved Heat Sink Cooling System Huge Storage Unit Visual Processing Unit Sensor Array Core Shielding Light Armor Plating Hardened Light Armor Plating Hardened Light Armor Plating Hardened Light Armor Plating Hardened Light Armor Plating Small Laser Grenade Launcher Mining Claw [Rating: 11] Favorites ----------- Power Ion Engine Engine Ion Engine Propulsion Aluminum Leg Treads Light Treads Leg Aluminum Leg Utility High-capacity Storage Unit Device Cooling System Storage High-capacity Storage Unit Protection Hardened Light Armor Plating Weapon Small Laser Energy Gun Small Laser Ballistic Gun Assault Rifle Launcher Grenade Launcher Build | -11 -10 -10 ------- Run | Yrd Mat Min Slots Evolved . | . . . Power . | . . . Propulsion . | . . . Utility . | . . . Weapon . | . . . Parts Attached 24 | . 19 5 Power 3 | . 3 . Engine 3 | . 3 . Core . | . . . Reactor . | . . . Propulsion 6 | . 5 1 Treads 3 | . 2 1 Leg 3 | . 3 . Wheel . | . . . Hover . | . . . Flight . | . . . Utility 7 | . 5 2 Device 2 | . 1 1 Storage 2 | . 2 . Processor . | . . . Hackware . | . . . Protection 3 | . 2 1 Artifact . | . . . Weapon 8 | . 6 2 Energy Gun 4 | . 4 . Energy Cannon . | . . . Ballistic Gun 3 | . 1 2 Ballistic Cannon . | . . . Launcher 1 | . 1 . Special Weapon . | . . . Impact Weapon . | . . . Slashing Weapon . | . . . Piercing Weapon . | . . . Special Melee Weapon . | . . . Unidentified Prototypes . | . . . Parts Lost 7 | . 6 1 Power 3 | . 2 1 Propulsion 2 | . 2 . Utility . | . . . Weapon 2 | . 2 . Highest Loss Streak 3 | . 3 1 To Critical Strikes . | . . . Average Backups 17 | . 16 19 Power . | . 1 . Propulsion 5 | . 5 4 Utility 8 | . 8 10 Weapon 2 | . 1 4 Tool/Special . | . . . Unused Backups 18 | . 3 15 Power . | . . . Propulsion 6 | . 1 5 Utility 8 | . 1 7 Weapon 4 | . 1 3 Tool/Special . | . . . Average Slot Usage (%) 98 | . 97 99 Engine 13 | . 14 13 Treads 8 | . . 28 Leg 19 | . 26 . Device 7 | . 8 6 Storage 14 | . 14 14 Protection 4 | . 3 7 Energy Gun 16 | . 18 11 Ballistic Gun 11 | . 9 16 Peak Build Rating 11 | . 11 11 Average Rating 9 | . 9 10 On Entrance 7 | 6 6 11 Avg Prop Armor Cover (%) . | . . . Naked Turns . | . . . Heaviest Build 54 | 12 54 51 Greatest Support 40 | 20 40 40 Greatest Overweight (x) 2 | . 2 1 Average Overweight (x) 1 | . 1 1 Largest Inventory Capacity 25 | . 25 20 Average Capacity 19 | . 19 20 Most Carried 20 | . 20 20 Average Carried 17 | . 16 19 Final Capacity 20 | 8 20 20 Final Carried 20 | 6 18 20 Class Distribution -------------------- 78% | Mutant 21% | Scavenger-Mutant Dominant Class ---------------- Mutant | -10/Materials Mutant | -10/Mines Resources | -11 -10 -10 ----------- Run | Yrd Mat Min Matter Collected 626 | 200 381 45 Remotely . | . . . Salvage Created 441 | . 401 40 Parts 34 | . 28 6 Haulers Intercepted . | . . . Recyclers Shooed . | . . . Parts Field Recycled . | . . . Retrieved Matter . | . . . Parts Self-Destructed . | . . . Prevented . | . . . Parts Restored . | . . . Kills | -11 -10 -10 ------- Run | Yrd Mat Min Combat Hostiles Destroyed 14 | . 11 3 Guns 14 | . 11 3 Classes Destroyed 4 | . 4 . Builder 1 | . 1 . Watcher 2 | . 2 . Swarmer 8 | . 5 3 Grunt 6 | . 6 . Best Kill Streak 3 | . 3 3 Combat Bots Only 3 | . 3 3 Max Kills in Single Turn 2 | . 1 2 Gunslinging 1 | . . 1 Exploded . | . . . Melee . | . . . Uniques/NPCs Destroyed . | . . . Combat | -11 -10 -10 -------- Run | Yrd Mat Min Hostile Shots Fired 130 | . 102 28 Missed 29 | . 26 3 Hits 101 | . 76 25 Projectile 101 | . 76 25 Critical Strikes 1 | . 1 . Damage Taken 1158 | . 880 278 Core 253 | . 213 40 Absorbed by Shields . | . . . Redirected to Shielding 9 | . . 9 Core Remaining (%) 100 | 100 . . Volleys Fired 70 | . 61 9 Largest 2 | . 2 2 Hottest 105 | . 80 105 Shots Fired 136 | . 117 19 Gun 134 | . 115 19 Cannon . | . . . Launcher 2 | . 2 . Special . | . . . Kinetic 68 | . 55 13 Thermal 66 | . 60 6 Explosive 2 | . 2 . Electromagnetic . | . . . Robot Hit Streak 14 | . 14 7 Robot Miss Streak 8 | . 8 3 Penetration Max . | . . . Secondary Targets 3 | . 2 1 Max Gunslinging Chain 1 | . 1 1 Shots Hit Robots 79 | . 66 13 Core Hits 26 | . 22 4 Critical Kills . | . . . Critical Parts Destroyed 1 | . 1 . Critical Strikes 4 | . 3 1 Burn 3 | . 2 1 Destroy 1 | . 1 . Melee Attacks . | . . . Impact . | . . . Slashing . | . . . Piercing . | . . . Sneak Attacks . | . . . Combat Hostiles . | . . . Follow-up Attacks . | . . . Damage Inflicted 943 | . 783 160 Guns 943 | . 783 160 Cannons . | . . . Explosions . | . . . Melee . | . . . Ramming . | . . . Kinetic 540 | . 422 118 Thermal 403 | . 361 42 Explosive . | . . . Electromagnetic . | . . . Impact . | . . . Slashing . | . . . Piercing . | . . . Highest Corruption 2 | . 2 2 Average Corruption 2 | . 2 2 Corruption Purged . | . . . Corruption Blocked . | . . . Effects 29 | . 21 8 Message Errors 7 | . 5 2 Matter Fused 4 | . 2 2 Heat Flow Errors 4 | . 4 . Energy Discharges 5 | . 4 1 Data Loss (minor) 4 | . 2 2 Data Loss (major) 1 | . 1 . Misfires 3 | . 2 1 Alerts 1 | . 1 . Overload Shots . | . . . Overflow Damage . | . . . Projectiles . | . . . Explosions . | . . . Melee . | . . . Knockbacks . | . . . Impact . | . . . Kinetic . | . . . Secondary . | . . . Self-Inflicted Damage . | . . . Shots . | . . . Rammed . | . . . Targets Rammed . | . . . Kicked . | . . . Crushed . | . . . Highest Temperature 388 | . 388 24 Average Temperature 65 | . 70 11 Received Heat Transfer 531 | . 414 117 Effects 3 | . 3 . Shutdowns 1 | . 1 . Interference 2 | . 2 . Siege Activations . | . . . Martial Activations . | . . . Shielding Activations . | . . . Robots Disrupted . | . . . Combat Hostiles . | . . . Robots Corrupted . | . . . Combat Hostiles . | . . . Parts Fried . | . . . Impact Corruptions . | . . . Robots Melted . | . . . Combat Hostiles . | . . . Parts Melted 3 | . 2 1 Heat Transferred 1216 | . 1043 173 Parts Sabotaged . | . . . Parts Stolen . | . . . Parts Stripped . | . . . Power Chain Reactions . | . . . Alert | -11 -10 -10 ------- Run | Yrd Mat Min Maximum Alert Level . | . . . Low Security (%) 100 | . 100 100 Level 1 . | . . . Level 2 . | . . . Level 3 . | . . . Level 4 . | . . . Level 5 . | . . . High Security . | . . . Max Security . | . . . Peak Influence 101 | . 101 74 Initial 4 | . . 4 Average 10 | . 11 8 Influence Increases 393 | . 323 70 Destroy 0b10 Robot/C 280 | . 220 60 Destroy 0b10 Robot/NC 15 | . 15 . Destroy Leader 64 | . 54 10 Successful Hack 19 | . 19 . Destroy Structure 15 | . 15 . Influence Decreases 393 | . 311 82 Entered New Map 8 | . . 8 Time Decay 359 | . 285 74 Lost Part 26 | . 26 . Squads Dispatched 1 | . 1 . Investigation 1 | . 1 . Extermination . | . . . Reinforcement . | . . . Assault . | . . . Garrison . | . . . Intercept . | . . . Searches Triggered . | . . . Construction Impeded . | . . . Haulers Reinforced . | . . . Active Scanning Responses . | . . . Cargo Convoy Interrupts . | . . . Stealth | -11 -10 -10 --------- Run | Yrd Mat Min Distress Signals . | . . . Communications Jammed . | . . . Distress Signals . | . . . Times Spotted 24 | . 19 5 Peak Tracking Total 3 | . 3 3 Tactical Retreats 2 | . 2 . Traps | -11 -10 -10 ------- Run | Yrd Mat Min Traps Triggered 3 | . 3 . Indirectly . | . . . Trap Hack Attempts . | . . . Triggered . | . . . Disarmed 2 | . 2 . Reprogrammed . | . . . Reused . | . . . Traps Extracted . | . . . Installed . | . . . Triggered . | . . . Machines | -11 -10 -10 ---------- Run | Yrd Mat Min Machines Disabled . | . . . Max in Single Turn . | . . . Machines Repaired . | . . . Machines Dismantled . | . . . Machines Sabotaged . | . . . Overloaded Fab Kills . | . . . Hacking | -11 -10 -10 --------- Run | Yrd Mat Min Machines Accessed 6 | . 6 . Terminals 6 | . 6 . Fabricators . | . . . Repair Stations . | . . . Recycling Units . | . . . Scanalyzers . | . . . Garrison Access . | . . . Total Hacks 12 | . 12 . Successful 8 | . 8 . Failed 4 | . 4 . Catastrophic 1 | . 1 . Database Lockouts . | . . . Manual . | . . . Terminals 12 | . 12 . Fabricators . | . . . Repair Stations . | . . . Recycling Units . | . . . Scanalyzers . | . . . Garrison Access . | . . . Terminal Hacks 8 | . 8 . Record 3 | . 3 . Prototype ID Bank 1 | . 1 . Alert Level 1 | . 1 . Locate Traps 2 | . 2 . Disarm Traps 1 | . 1 . Fabricator Hacks . | . . . Repair Station Hacks . | . . . Recycling Unit Hacks . | . . . Scanalyzer . | . . . Garrison Access Hacks . | . . . Unauthorized Hacks . | . . . Terminals . | . . . Fabricators . | . . . Repair Stations . | . . . Recycling Units . | . . . Scanalyzers . | . . . Garrison Access . | . . . Data Cores Recovered . | . . . Used . | . . . Hacking Detections 5 | . 5 . Full Trace Events . | . . . Feedback Events . | . . . Feedback Blocked . | . . . Robot Schematics Acquired . | . . . Robots Built . | . . . Authchips . | . . . Time . | . . . Total Robot Build Rating . | . . . Part Schematics Acquired . | . . . Parts Built . | . . . Authchips . | . . . Time . | . . . Total Part Build Rating . | . . . Part Studies Acquired . | . . . Parts Repaired . | . . . Time . | . . . Parts Recycled . | . . . Recycled Matter . | . . . Retrieved Matter . | . . . Retrieved Components . | . . . Parts Scanalyzed . | . . . Part Schematics Acquired . | . . . Parts Damaged . | . . . Bothacking | -11 -10 -10 ------------ Run | Yrd Mat Min Used RIF Installer . | . . . Robots Hacked . | . . . Non-combat . | . . . Combat . | . . . Robot Hacks Applied . | . . . Relay Couplers Released . | . . . Fabnet Peak Effective % . | . . . Robots Rewired . | . . . Allies Hacked . | . . . Hacks Repelled . | . . . Allies | -11 -10 -10 -------- Run | Yrd Mat Min Total Allies . | . . . Largest Group . | . . . Highest-Rated Group . | . . . Highest-Rated Ally . | . . . Total Orders . | . . . Ally Attacks . | . . . Total Damage . | . . . Kills . | . . . Allies Corrupted . | . . . Allies Melted . | . . . Intel | -11 -10 -10 ------- Run | Yrd Mat Min Active Infowar (turns) 49 | . . 49 Seismic 49 | . . 49 Robot Analysis Total . | . . . Derelict Logs Recovered . | . . . Drone Launches . | . . . Drone Recoveries . | . . . Exploration | -11 -10 -10 ------------- Run | Yrd Mat Min Turns Passed 2623 | . 1907 716 Spaces Moved 904 | 1 652 251 Core . | . . . Treads 277 | . 26 251 Legs 627 | 1 626 . Wheels . | . . . Hover . | . . . Flight . | . . . Fastest Speed 120 | 120 120 240 Average Speed 242 | 120 243 240 Slowest Speed 260 | 120 260 240 Overloaded Moves . | . . . Propulsion Burnouts . | . . . Robots Hopped . | . . . Potential Cave-ins . | . . . Cave-ins Triggered . | . . . Exploration Rate (%) 46 | 2 98 40 Regions Visited 2 Branch Regions 1 Pre-discovered Areas . | . . . Known Exits Taken . | . . . Unknown Exits Taken 2 | 1 1 . Scrap Searched 1 | . . 1 Spaces Dug 6 | . 6 . Terrain Destroyed 12 | . 12 . Melee . | . . . Projectile . | . . . AOE 12 | . 12 . Terrain Rammed . | . . . Walls Destroyed . | . . . Machines Disabled . | . . . Actions | -11 -10 -10 --------- Run | Yrd Mat Min Total 1207 | . 855 352 Wait 165 | . 93 72 Move 902 | . 651 251 Hop . | . . . Pick Up 28 | . 21 7 Fast Attach 6 | . 5 1 Attach 14 | . 11 3 Detach 3 | . 3 . Swap 7 | . 5 2 Drop 12 | . 5 7 Fire 70 | . 61 9 Melee . | . . . Ram . | . . . Kick . | . . . Crush . | . . . Escape Stasis . | . . . Rewire . | . . . Trap . | . . . Miscellaneous . | . . . Route ------- -11/Scrapyard -10/Materials (discovered 4 exits: [*Mat x3] / [*Min]) -10/Mines (discovered 2 exits: [*Mat x2]) History --------- Turn | Location | Event 1 | -11/Scrapyard | Discovered new exit (range 0) 1 | -11/Scrapyard | Entered Materials 312 | -10/Materials | Build established: Mutant 344 | -10/Materials | Discovered new exit (range 16) 501 | -10/Materials | Derelicts attacked the area 711 | -10/Materials | Discovered new exit (range 15) 1092 | -10/Materials | Core integrity fell below 50% 1116 | -10/Materials | Lost 3 parts (1p2n) 1297 | -10/Materials | Core integrity fell below 20% 1576 | -10/Materials | Discovered new exit (range 7) 1591 | -10/Materials | Build established: Scavenger-Mutant 1829 | -10/Materials | Discovered new exit (range 15) 1908 | -10/Materials | Entered Mines 2088 | -10/Mines | Discovered new exit (range 12) 2133 | -10/Mines | Joined a pair of Derelicts in attacking an 0b10 outpost 2154 | -10/Mines | Build established: Mutant 2279 | -10/Mines | Discovered new exit (range 6) 2624 | -10/Mines | Destroyed by G-34 Mercenary with Small Laser Last Messages --------------- 02311_ System corrupted: Energy discharge (-52). 02370_ Searching scrap... 02370_ Found Seismic Detector. 02370_ Found ECM Suite. 02370_ Found Sml. Laser. 02370_ Found 44 Matter. 02384_ System corrupted: Component data lost. 02445_ ZCSO=JDIVVSDFQRMV0GU4Y>AT70IISN6 02468_ System corrupted: FCS attempts to trigger Lgt. Assault Rifle. 02468_ System corrupted: Lgt. Assault Rifle misfires. 02488_ System corrupted: Matter fused (-6). 02517_ Dropped Core Shielding. 02517_ Acquired Unknown Device. 02517_ Identified Seismic Detector. 02521_ Dropped Visual Processing Unit. 02522_ Acquired Core Shielding. 02552_ VBQF=NBJ AG8/,TXA R>,0OBIEZW 02612_ Ion Engine destroyed. Map ----- +----------------------------------------------------+ | ??????????????????????????????????? | | ??????????????????????????????????? | | ??????????????????????????????????? | | ??????????????????????????????????? | | ??????????????????????????????????? | | ??????????????????????????????????? | | ??????????????????????????????????? | | ??????????????????????????????????? | | ??????????????????????????????????? | | ??????????????????????????????????? | | ??????????????????????????????????? | | ??????????????????????????????????? | | ???????????????? #???????????????? | | ?????????????? ??????????????? | | ??????????????? ??????????????? | | ???????????????? ?????????????? | | ????????????????# ##???????????? | | ?????????????????# #??????????? | | ?????????????????# ??????????? | | ?????????????????# ?????###??? | | ?????????????????# #???# ##?? | | ??????????????????? ### #?? | | ????????????????????? g #?? | | ??????????????????????? ???? | | ????????????????????????#g #??????? | | ????????????????????????#@ #??????? | | ????????????????????##### #??????? | | ???????????????###### #??????? | | ???????????????# ### #??????? | | ???????????????#! #?# #??????? | | ???????????????# ######?# #####??? | | ???????????????# ##???### ## ##?? | | ???????????????#%[ ##### #?? | | ?????????????###! #?? | | ????????????## #?? | | ????????????# #?? | | ????????????# ### #####?? | | ????###????## ###?## ##?????? | | ???## ##### ##????#### #??????? | | ## #????????## #??????? | | ##???###### #??????? | | #??## ## ##??????? | | #??# #???????? | | ##?# #???????? | | ### #### #???????? | | #??# ##### ##???????? | | ###???# #??#####????????? | | ???????# #???????????????? | | ? ????????# ##???????????????? | | ?????????## ##????????????????? | +----------------------------------------------------+ Best States ------------- Heat Dissipation 47 Energy Generation 10 Energy Capacity 250 Matter Stores 300 Matter Capacity 300 Sight Range 16 Terrain Scan Density 10 Armor Coverage 150 Core Shielding 20 Evasion (%) 55 Recoil Reduction 2 Item Schematics ----------------- None Robot Schematics ------------------ None Fabricated ------------ Nothing Repaired ---------- Nothing Studied --------- None Alien Tech Used ----------------- None Achievements -------------- None Challenges ------------ None Game ------ Seed MassMetamassAutogun Manual? 0 Play Time 00:17:48 Cumulative 152.5 hours Start 2026.06.28 @ 12:48:55 End 2026.06.28 @ 13:12:12 Sessions 1 Manual Loads 0 Difficulty Rogue Special Mode None Game No. 207 Rogue 207 Adventurer 0 Explorer 0 Win Type - Total 1 Types 1/0/0/0/0/0/0/0/0/0 Lore% 49 Gallery% 53 Achievement% 30 Wizard Run 0 Options --------- Layout 1 ASCII 0 Keyboard 0 Movement Mouse Keybinds 1 Fullscreen 1 Font 24/Smallcaps Map View 50x35 Zoom Use 0% Tactical HUD 1 Map Filters NONE Filters NONE Steam 1 RUN: d369e72c-a48c-45da-b5e6-6a36cc4700d3